fUSD/lending_fUSD_20240508
["ID","MTS","AMOUNT","RATE_DAILY","PERIOD"]
[326604355,1715130644719,-1066.32182804,0.00013,2]
[326604356,1715130644731,-326.7289521,0.00013,2]
[326604357,1715130644744,-582.270009,0.00013,2]
[326604358,1715130644755,-690.69,0.00013,2]
[326604359,1715130644876,-2882.0,0.00013,2]
[326604360,1715130644888,-4540.0,0.00013,2]
[326604361,1715130644901,-489.23716,0.00013,2]
[326604362,1715130644912,-736.37395775,0.00013,2]
[326604363,1715130644924,-7786.92172431,0.00013,2]
[326604364,1715130646456,-5665.02731206,0.00012999,2]
[326604366,1715130646467,-592.53863825,0.00012999,2]
[326604368,1715130646479,-359.00939672,0.00012999,2]
[326604369,1715130647392,-653.09542113,0.00012998,2]
[326604370,1715130647403,-1646.62541913,0.00012998,2]
[326604371,1715130647415,-100.51160759,0.00012999,2]
[326604372,1715130647426,-27084.81445467,0.00013,2]
[326604373,1715130647441,-661.84470698,0.00013,2]
[326604374,1715130647454,-736.0,0.00013,2]
[326604375,1715130647467,-2544.80418807,0.00013,2]
[326604376,1715130647479,-8280.005795,0.00013,2]
[326604377,1715130647490,-519.67328745,0.00013,2]
[326604378,1715130647501,-333.13549935,0.00013,2]
[326604379,1715130647515,-693.38000075,0.00013,2]
[326604380,1715130647528,-2996.70200789,0.00013,2]
[326604381,1715130647539,-16231.02761,0.00013,2]
[326604382,1715130647553,-1515.48982,0.00013,2]
[326604385,1715131340031,-1243.56007584,0.00011242,2]
[326604386,1715131340061,-4271.31667855,0.00011242,2]
[326604387,1715131340087,-1378.90396912,0.00011242,2]
[326604388,1715131340111,-1052.05964256,0.00011243,2]
[326604389,1715131340136,-156.38164408,0.00011243,2]
[326604390,1715131340159,-176.05120138,0.00011244,2]
[326604391,1715131340185,-2061.75770922,0.00011244,2]
[326604392,1715131340210,-150.0,0.00011245,2]
[326604393,1715131340234,-16207.93402184,0.00011251,2]
[326604394,1715131340258,-159.31372081,0.00011269,2]
[326604395,1715131340282,-178.91,0.0001181,2]
[326604396,1715131340318,-232.22,0.0001195,2]
[326604397,1715131340347,-23900.0,0.00011974,2]
[326604398,1715131340371,-500.0,0.00012012,2]
[326604399,1715131340395,-206.23,0.00012038,2]
[326604400,1715131340420,-499.99,0.00012038,2]
[326604401,1715131340443,-150.99,0.00012038,2]
[326604402,1715131564886,331.5913366,0.00012015,2]
[326604403,1715131575903,2920.494419,0.00025,120]
[326604408,1715131867954,-156.39432473,0.00011982,2]
[326604410,1715131867965,-1243.56007584,0.00011983,2]
[326604411,1715131867977,-1050.04559943,0.00011984,2]
[326604412,1715131867991,-2.01404313,0.00011984,2]
[326604413,1715131868001,-155.26,0.00011989,2]
[326604414,1715131868014,-785.61894283,0.00012015,2]
[326604416,1715131868027,-485.88175586,0.00012015,2]
[326604431,1715131872320,-21344.91796471,0.00012015,2]
[326604436,1715131872329,-538.51236108,0.00012097,2]
[326604439,1715131872338,-205.73,0.00012099,2]
[326604442,1715131872347,-856.87,0.00012111,2]
[326604445,1715131872357,-250.0,0.00012167,2]
[326604447,1715131872367,-3500.3496962,0.00012627,2]
[326604449,1715131872376,-1561.57283666,0.00012705,2]
[326604451,1715131872386,-368.78,0.00012811,2]
[326604453,1715131872395,-499.99,0.00012811,2]
[326604455,1715131872405,-1238.01708,0.0001287,2]
[326604457,1715131872416,-500.0,0.00012895,2]
[326604459,1715131872426,-500.0,0.00012896,2]
[326604461,1715131872435,-500.0,0.00012896,2]
[326604462,1715131872444,-1002.20182295,0.00012899,2]
[326604464,1715131872454,-1003.55539692,0.00012899,2]
[326604465,1715131872464,-17293.96714815,0.000129,2]
[326604467,1715131872475,-256.5196,0.000129,2]
[326604469,1715131872484,-2644.353,0.000129,2]
[326604470,1715131872494,-210.4083,0.000129,2]
[326604472,1715131872504,-155.0,0.00012998,2]
[326604474,1715131872514,-4411.78886358,0.00012998,2]
[326604475,1715131872523,-324.98071531,0.00012998,2]
[326604477,1715131872533,-188.6642328,0.00012998,2]
[326604479,1715131872543,-226.01693857,0.00012998,2]
[326604480,1715131872553,-4265.72436455,0.00012998,2]
[326604482,1715131872562,-1162.11203174,0.00012998,2]
[326604484,1715131872572,-1880.48069711,0.00012999,2]
[326604485,1715131872583,-3784.61491763,0.00012999,2]
[326604487,1715131872592,-1083.0,0.00013,2]
[326604489,1715131872601,-932989.60558061,0.00013,2]
[326604492,1715131873924,-2090.75496125,0.00013,2]
[326604495,1715131873935,-4314.66608278,0.00013,2]
[326604497,1715131873946,-8544.62226681,0.00013,2]
[326604703,1715131881813,-2523.07661176,0.00012999,2]
[326604704,1715131881825,-6160.19834561,0.00013,2]
[326604705,1715131881837,-8947.21879473,0.00013,2]
[326604706,1715131881849,-8943.78386462,0.00013,2]
[326604707,1715131881861,-9077.54866152,0.00013,2]
[326604708,1715131881872,-8943.84023489,0.00013,2]
[326604709,1715131881884,-1968.09342024,0.00013,2]
[326604710,1715131881897,-648.36241412,0.00013,2]
[326604719,1715131887660,-1.29099893,0.00012998,2]
[326604722,1715131887677,-155.1033258,0.00012998,2]
[326604724,1715131887688,-1243.67839404,0.00012999,2]
[326604725,1715131887698,-459.05080754,0.00012999,2]
[326604728,1715131887708,-664065.63905825,0.00013,2]
[326604731,1715131887721,-826.25901472,0.00013,2]
[326604733,1715131887733,-623.25,0.00013,2]
[326604736,1715131887746,-434.4604038,0.00013,2]
[326604738,1715131887758,-2267.5,0.00013,2]
[326604747,1715131894195,-497.75,0.00013,2]
[326604750,1715131894210,-322.9200001,0.00013,2]
[326604752,1715131894223,-382.28943785,0.00013,2]
[326604754,1715131894237,-1303.58494265,0.00013,2]
[326604757,1715131894250,-272.69910537,0.00013,2]
[326604759,1715131894262,-530.6,0.00013,2]
[326604761,1715131894274,-627.36546595,0.00013,2]
[326604800,1715133033178,-1243.67839404,0.00011687,2]
[326604803,1715133033189,-250.0,0.00011688,2]
[326604806,1715133033200,-685.5,0.00011728,2]
[326604809,1715133033209,-157.75,0.00011773,2]
[326604812,1715133033221,-539.91396081,0.00011841,2]
[326604815,1715133033230,-156.39432473,0.00011842,2]
[326604817,1715133033240,-154.06840731,0.00011843,2]
[326604819,1715133033249,-150.64,0.00011864,2]
[326604821,1715133033258,-157.66,0.00011893,2]
[326604823,1715133033267,-2771.19491311,0.00011942,2]
[326604880,1715133038622,-1643.57866966,0.00011942,2]
[326604881,1715133038632,-246.14,0.00011944,2]
[326604883,1715133038642,-369.08,0.00011944,2]
[326604885,1715133038651,-154.06840725,0.00011975,2]
[326604888,1715133038661,-314.5,0.00012048,2]
[326604891,1715133038670,-154.06840725,0.00012107,2]
[326604893,1715133038679,-154.06840725,0.00012239,2]
[326604897,1715133038688,-154.06840725,0.00012372,2]
[326604901,1715133038697,-499.99,0.00012372,2]
[326604905,1715133038707,-154.06840725,0.00012504,2]
[326604908,1715133038717,-154.06840725,0.00012636,2]
[326604910,1715133038727,-1561.86172371,0.00012656,2]
[326604912,1715133038736,-998.15399232,0.00012676,2]
[326604915,1715133038747,-2502.7873439,0.00012676,2]
[326604918,1715133038757,-154.06840725,0.00012768,2]
[326604921,1715133038766,-154.06840725,0.000129,2]
[326604924,1715133038776,-450.4709,0.000129,2]
[326604927,1715133038785,-256.5545,0.000129,2]
[326604930,1715133038795,-311.93372942,0.000129,2]
[326604933,1715133038804,-200.47128644,0.000129,2]
[326604936,1715133038813,-2646.5167,0.000129,2]
[326604939,1715133038823,-553.83832105,0.000129,2]
[326604942,1715133038832,-398.5562948,0.000129,2]
[326604944,1715133038841,-323.0483,0.000129,2]
[326604947,1715133038851,-722.27301306,0.00012992,2]
[326604951,1715133038864,-443.32664578,0.00012992,2]
[326604954,1715133038873,-226.69106386,0.00012993,2]
[326604957,1715133038883,-189.10617817,0.00012993,2]
[326604960,1715133038892,-7239.14,0.00012996,2]
[326604963,1715133038902,-1005.75721987,0.00012996,2]
[326604966,1715133038911,-407.47889232,0.00012998,2]
[326604969,1715133038923,-435.4275,0.00012998,2]
[326604974,1715133038935,-6416.32360768,0.00012998,2]
[326604977,1715133038944,-1880.48069711,0.00012998,2]
[326604980,1715133038954,-155.21036496,0.00012998,2]
[326604983,1715133038964,-325.8637944,0.00012998,2]
[326604984,1715133038973,-459.05080754,0.00012998,2]
[326604988,1715133038982,-4273.81885957,0.00012998,2]
[326604989,1715133038991,-7476.67,0.00012999,2]
[326604993,1715133039001,-222.0093951,0.00012999,2]
[326604996,1715133039011,-2943.58938038,0.00012999,2]
[326604999,1715133039021,-1134.0,0.00013,2]
[326605002,1715133039031,-7212.42,0.00013,2]
[326605005,1715133039041,-106875.60173931,0.00013,2]
[326605008,1715133039050,-1374.34488026,0.00013,2]
[326605011,1715133039060,-155.0,0.00013,2]
[326605014,1715133039070,-179.73027173,0.00013,2]
[326605016,1715133039079,-465.89658979,0.00013,2]
[326605019,1715133039088,-841852.80519603,0.00013,2]
[326605191,1715133041050,-1060.14122086,0.0001281,2]
[326605194,1715133041062,-2367.86383752,0.0001281,2]
[326605196,1715133041072,-391.06421089,0.00012866,2]
[326605198,1715133041081,-241.99719335,0.00013,2]
[326605200,1715133041093,-554.49841702,0.00013,2]
[326605205,1715133043799,-666144.62079702,0.00013,2]
[326605212,1715133043811,-11962.95409776,0.00013,2]
[326605214,1715133043827,-661.66608519,0.00013,2]
[326605218,1715133043838,-460.07091854,0.00013,2]
[326605222,1715133043849,-2306.6388282,0.00013,2]
[326605225,1715133043860,-805.43476892,0.00013,2]
[326605226,1715133043871,-2000.0,0.00013,2]
[326605253,1715133046599,-1013.0,0.00013,2]
[326605254,1715133046609,-1095.65524066,0.00013,2]
[326605256,1715133046622,-13515.17663353,0.00013,2]
[326605258,1715133046634,-1397.37329969,0.00013,2]
[326605267,1715133714900,-1243.67839404,0.00011571,2]
[326605268,1715133714930,-528.05763864,0.00011572,2]
[326605269,1715133714958,-209.5946372,0.00011573,2]
[326605270,1715133714988,-3780.351,0.00011587,2]
[326605271,1715133715016,-753.27098142,0.00011699,2]
[326605272,1715133715047,-14309.13,0.0001195,2]
[326605273,1715133715077,-174.59,0.00011985,2]
[326605274,1715133715103,-514.73,0.00011988,2]
[326605275,1715133715132,-1000.0,0.00012016,2]
[326605276,1715133748440,150.0,0.00011962,2]
[326605278,1715133793038,203.98,0.00011968,2]
[326605280,1715133804455,409.2190105,0.00011962,2]
[326605282,1715133820459,409.89541822,0.00011962,2]
[326605283,1715133863600,6313.50291998,0.00011962,2]
[326605284,1715133895478,-299.28,0.00011947,2]
[326605285,1715133895501,-250.0,0.00011956,2]
[326605286,1715133895523,-289.70312432,0.00011961,2]
[326605287,1715133895546,-19161.01687568,0.00011961,2]
[326605296,1715134232482,-262.72038004,0.00011362,2]
[326605298,1715134232495,-156.1817946,0.00011363,2]
[326605299,1715134232509,-843.8182054,0.00011363,2]
[326605300,1715134232520,-53.17247612,0.00011693,2]
[326605303,1715134232533,-667.36237526,0.00011693,2]
[326605305,1715134232544,-523.14354266,0.00011693,2]
[326605307,1715134232555,-174.59,0.00011695,2]
[326605309,1715134232564,-150.0,0.00011708,2]
[326605310,1715134232575,-600.0,0.000118,4]
[326605311,1715134232585,-535.00279168,0.00011838,2]
[326605312,1715134232594,-3273.95578551,0.00011839,2]
[326605313,1715134232604,-161.09867534,0.00011861,2]
[326605314,1715134232613,-1553.09794327,0.00011861,2]
[326605315,1715134232625,-5946.90205673,0.00011861,2]
[326605316,1715134232634,-177.11329314,0.00011862,2]
[326605317,1715134232643,-1300.0,0.000119,4]
[326605318,1715134232653,-158.10249215,0.000119,2]
[326605319,1715134232662,-23900.0,0.00011916,2]
[326605320,1715134232671,-170.42745763,0.0001195,2]
[326605321,1715134232681,-266.03596093,0.00011959,2]
[326605322,1715134232691,-159.01119133,0.00011959,2]
[326605323,1715134232701,-155.4617728,0.00011959,2]
[326605324,1715134232710,-281.74106733,0.00011959,2]
[326605325,1715134232719,-381.60930398,0.00011959,2]
[326605326,1715134232728,-156.06190448,0.00011959,2]
[326605327,1715134232738,-713.21667103,0.00011959,2]
[326605328,1715134232748,-370.53756497,0.00011959,2]
[326605329,1715134232757,-714.8457699,0.0001196,2]
[326605330,1715134232766,-155.0,0.0001196,2]
[326605331,1715134232776,-145559.77524963,0.0001196,2]
[326605332,1715134232788,-15764.62598836,0.0001196,2]
[326605333,1715134233657,-259.86200001,0.0001196,2]
[326605334,1715134233669,-357.4799971,0.0001196,2]
[326605335,1715134233680,-781.95019923,0.0001196,2]
[326605336,1715134233694,-1806.00192747,0.0001196,2]
[326605337,1715134233705,-827.13712285,0.0001196,2]
[326605338,1715134233715,-544.0998858,0.0001196,2]
[326605339,1715134233727,-7966.72183934,0.0001196,2]
[326605340,1715134233738,-344970.27895492,0.0001196,2]
[326605341,1715134233749,-33812.71672177,0.0001196,2]
[326605342,1715134233760,-134741.58150356,0.0001196,2]
[326605343,1715134233770,-70904.20708782,0.00011961,2]
[326605344,1715134233781,-626.71201654,0.00011961,2]
[326605345,1715134233792,-346.48303694,0.00011961,2]
[326605366,1715134243345,-683.32093934,0.00011,2]
[326605368,1715134243355,-6551.15171091,0.00011961,2]
[326605376,1715134243520,-730.49560893,0.00011961,2]
[326605377,1715134243532,-6628.30439943,0.00011961,2]
[326605378,1715134243544,-835.11710452,0.00011961,2]
[326605379,1715134243555,-14719.51729022,0.00011961,2]
[326605380,1715134243567,-308.17550064,0.00011961,2]
[326605381,1715134243580,-253.15814865,0.00011961,2]
[326605382,1715134243594,-336.17480632,0.00011961,2]
[326605383,1715134243605,-942.920234,0.00011961,2]
[326605384,1715134243616,-443789.11799556,0.00011961,2]
[326605385,1715134243626,-150.0,0.00011961,2]
[326605386,1715134243635,-151.42466987,0.00011961,2]
[326605387,1715134243645,-174.59,0.00011999,2]
[326605388,1715134243654,-2105.48982895,0.00012,2]
[326605389,1715134243663,-150.61,0.00012,2]
[326605390,1715134243674,-150.61,0.00012,2]
[326605391,1715134243683,-150.61,0.00012,2]
[326605392,1715134243693,-150.61,0.00012,2]
[326605393,1715134243704,-150.61,0.00012,2]
[326605394,1715134243713,-1000.0,0.00012014,2]
[326605395,1715134243723,-174.59,0.00012304,2]
[326605396,1715134243732,-499.99,0.00012401,2]
[326605397,1715134243742,-166.15,0.00012455,2]
[326605398,1715134243751,-2000.0,0.000125,4]
[326605399,1715134243761,-1000.0,0.00012506,2]
[326605400,1715134243770,-2700.0,0.000126,4]
[326605401,1715134243780,-838.04946646,0.00012631,2]
[326605402,1715134243789,-3300.0,0.000127,4]
[326605403,1715134243798,-1000.0,0.00012783,2]
[326605404,1715134243808,-1880.9825,0.00012796,2]
[326605405,1715134243818,-520.8575,0.00012796,2]
[326605406,1715134243828,-2500.0,0.00012796,2]
[326605407,1715134243838,-210.3435,0.00012798,2]
[326605408,1715134243847,-21163.8248,0.00012798,2]
[326605409,1715134243856,-221.527,0.00012798,2]
[326605410,1715134243866,-39116.4304,0.00012798,2]
[326605411,1715134244009,-600.0,0.000128,4]
[326605412,1715134244019,-150.61,0.00012887,2]
[326605413,1715134244029,-150.61,0.00012889,2]
[326605414,1715134244039,-150.61,0.00012889,2]
[326605415,1715134244048,-150.61,0.00012889,2]
[326605416,1715134244057,-500.0,0.00012895,2]
[326605417,1715134244066,-168.32996848,0.00012896,2]
[326605418,1715134244075,-500.0,0.00012896,2]
[326605419,1715134244085,-500.0,0.00012896,2]
[326605420,1715134244095,-307.5999,0.00012897,2]
[326605421,1715134244104,-1000.0,0.00012897,2]
[326605422,1715134244114,-100000.0,0.00012897,2]
[326605423,1715134244123,-1007.7219611,0.00012898,2]
[326605424,1715134244133,-20878.2503,0.00012899,2]
[326605425,1715134244142,-1000.0,0.00012899,2]
[326605426,1715134244152,-11479.7775,0.00012899,2]
[326605427,1715134244161,-16891.81697479,0.00012899,2]
[326605428,1715134244172,-228108.18302521,0.00012899,2]
[326605429,1715134244182,-170.06139776,0.000129,2]
[326605430,1715134244191,-33061.68565579,0.000129,2]
[326605431,1715134244204,-600.0,0.000129,4]
[326605432,1715134244214,-2493.72858781,0.000129,2]
[326605433,1715134244223,-465.10346325,0.000129,2]
[326605434,1715134244232,-930.9122205,0.000129,2]
[326605435,1715134244242,-2239.36151176,0.00012986,2]
[326605436,1715134244252,-150.61,0.00012989,2]
[326605437,1715134244261,-150.61,0.0001299,2]
[326605438,1715134244271,-150.61,0.0001299,2]
[326605439,1715134244281,-150.61,0.0001299,2]
[326605440,1715134244290,-150.61,0.0001299,2]
[326605441,1715134244299,-150.61,0.0001299,2]
[326605442,1715134244308,-150.61,0.0001299,2]
[326605443,1715134244318,-150.61,0.0001299,2]
[326605444,1715134244328,-150.61,0.0001299,2]
[326605445,1715134244337,-150.61,0.0001299,2]
[326605446,1715134244346,-150.61,0.0001299,2]
[326605447,1715134244355,-150.61,0.0001299,2]
[326605448,1715134244365,-150.61,0.0001299,2]
[326605449,1715134244374,-150.61,0.0001299,2]
[326605450,1715134244384,-150.61,0.0001299,2]
[326605451,1715134244394,-150.61,0.0001299,2]
[326605452,1715134244404,-150.61,0.0001299,2]
[326605453,1715134244413,-150.61,0.0001299,2]
[326605454,1715134244423,-150.61,0.0001299,2]
[326605455,1715134244432,-150.61,0.0001299,2]
[326605456,1715134244442,-150.61,0.0001299,2]
[326605457,1715134244453,-150.61,0.0001299,2]
[326605458,1715134244462,-150.61,0.0001299,2]
[326605459,1715134244472,-150.61,0.0001299,2]
[326605460,1715134244482,-150.61,0.0001299,2]
[326605461,1715134244491,-150.61,0.0001299,2]
[326605462,1715134244502,-150.61,0.0001299,2]
[326605463,1715134244512,-150.61,0.0001299,2]
[326605464,1715134244522,-150.61,0.0001299,2]
[326605465,1715134244531,-150.61,0.0001299,2]
[326605466,1715134244541,-150.61,0.0001299,2]
[326605467,1715134244550,-150.61,0.0001299,2]
[326605468,1715134244559,-150.61,0.0001299,2]
[326605469,1715134244568,-150.61,0.0001299,2]
[326605470,1715134244580,-150.61,0.0001299,2]
[326605471,1715134244590,-150.61,0.0001299,2]
[326605472,1715134244599,-150.61,0.0001299,2]
[326605473,1715134244608,-150.61,0.0001299,2]
[326605474,1715134244618,-150.61,0.0001299,2]
[326605475,1715134244627,-150.61,0.0001299,2]
[326605476,1715134244637,-150.61,0.0001299,2]
[326605477,1715134244646,-150.61,0.0001299,2]
[326605478,1715134244656,-150.61,0.0001299,2]
[326605479,1715134244665,-150.61,0.0001299,2]
[326605480,1715134244675,-150.61,0.0001299,2]
[326605481,1715134244684,-150.61,0.0001299,2]
[326605482,1715134244693,-150.61,0.0001299,2]
[326605483,1715134244704,-150.61,0.0001299,2]
[326605484,1715134244715,-150.61,0.0001299,2]
[326605485,1715134244724,-150.61,0.0001299,2]
[326605486,1715134244734,-150.61,0.0001299,2]
[326605487,1715134244744,-150.61,0.0001299,2]
[326605488,1715134244753,-150.61,0.0001299,2]
[326605489,1715134244763,-150.61,0.0001299,2]
[326605490,1715134244772,-150.61,0.0001299,2]
[326605491,1715134244781,-2493.72858777,0.00012995,2]
[326605492,1715134244791,-4273.81885957,0.00012996,2]
[326605493,1715134244800,-459.05080754,0.00012997,2]
[326605494,1715134244810,-274.93836201,0.00012997,2]
[326605495,1715134244821,-175.58284376,0.00012997,2]
[326605496,1715134244831,-155.22017078,0.00012997,2]
[326605497,1715134244840,-157.28263217,0.00012997,2]
[326605498,1715134244849,-305.91269742,0.00012997,2]
[326605499,1715134244859,-160.87786431,0.00012997,2]
[326605500,1715134244868,-212.78597919,0.00012997,2]
[326605501,1715134244878,-157.42867157,0.00012997,2]
[326605502,1715134244888,-3256.10020294,0.00012998,2]
[326605503,1715134244898,-319.05737077,0.00012998,2]
[326605504,1715134244908,-362.7039675,0.00012998,2]
[326605505,1715134244918,-208.64440036,0.00012998,2]
[326605506,1715134244927,-29262.54080533,0.00012998,2]
[326605507,1715134244939,-176.68918461,0.00012998,2]
[326605508,1715134244950,-325.8637944,0.00012998,2]
[326605509,1715134244959,-222.0093951,0.00012999,2]
[326605510,1715134244968,-4415.38407057,0.00012999,2]
[326605511,1715134244978,-1073.0,0.00013,2]
[326605512,1715134244987,-658601.60905411,0.00013,2]
[326605513,1715134244999,-27561.82820925,0.00013,2]
[326605514,1715134245010,-261.355,0.00013,2]
[326605515,1715134245022,-580.55516096,0.00013,2]
[326605516,1715134245078,-633.8742985,0.00013,2]
[326605517,1715134245089,-1375240.61355611,0.00013,2]
[326605518,1715134245099,-5282.53234446,0.00013,2]
[326605519,1715134245108,-3137827.73255494,0.00013,2]
[326605520,1715134245119,-109184.61923261,0.00013,2]
[326605521,1715134245130,-67610.54876336,0.00013,2]
[326605522,1715134245141,-946.67592046,0.00013,2]
[326605523,1715134245152,-439.14891226,0.00013,2]
[326605524,1715134245163,-643.00562604,0.00013,2]
[326605525,1715134245504,-227.60562818,0.0001196,2]
[326605527,1715134245513,-3004.69437182,0.00013,2]
[326605529,1715134245524,-401.71039322,0.00013,2]
[326605532,1715134245537,-31559.78969696,0.00013,2]
[326605533,1715134245548,-3523.4328,0.00013,2]
[326605534,1715134245560,-1028.59370948,0.00013,2]
[326605535,1715134245571,-933.8577158,0.00013,2]
[326605681,1715134247292,-239.9855524,0.0001196,2]
[326605683,1715134247302,-262.98415696,0.00012999,2]
[326605685,1715134247312,-4007.83643916,0.00013,2]
[326605687,1715134247323,-1573.54895211,0.00013,2]
[326605731,1715134872618,10000.0,0.00025,120]
[326605732,1715134937650,1077.0,0.00025,120]
[326605741,1715135433168,-559.18577829,0.00010096,2]
[326605743,1715135433179,-484.28691844,0.00010096,2]
[326605745,1715135433191,-482.87677638,0.00010096,2]
[326605746,1715135433203,-2745.38892863,0.00010096,2]
[326605747,1715135433215,-326.32137656,0.00010096,2]
[326605748,1715135433224,-4737.07272896,0.00010097,2]
[326605749,1715135433234,-155.0,0.00010097,2]
[326605750,1715135433243,-2359.43620527,0.00010098,2]
[326605751,1715135433254,-533.97181909,0.00010099,2]
[326605752,1715135433265,-150.0,0.000101,2]
[326605753,1715135433274,-155.0,0.000101,2]
[326605754,1715135433283,-1243.67839404,0.000101,2]
[326605755,1715135433293,-200.0,0.00010105,2]
[326605756,1715135433302,-19502.03571005,0.00010107,2]
[326605757,1715135433312,-600.0,0.00010108,2]
[326605758,1715135433321,-250.0,0.00010137,2]
[326605759,1715135433331,-23900.0,0.00010617,2]
[326605760,1715135433340,-330.07,0.00010627,2]
[326605761,1715135433350,-6572.51,0.00010627,2]
[326605762,1715135433359,-330.07,0.00010656,2]
[326605763,1715135433368,-1333.03,0.00010679,2]
[326605764,1715135433378,-330.07,0.00010685,2]
[326605765,1715135433388,-1012.44574414,0.00010703,2]
[326605766,1715135433398,-303.01,0.00010704,2]
[326605767,1715135433408,-499.99,0.00010704,2]
[326605768,1715135433418,-1500.0,0.00010708,2]
[326605769,1715135433427,-330.07,0.00010714,2]
[326605770,1715135433436,-330.07,0.00010743,2]
[326605771,1715135433445,-330.07,0.00010772,2]
[326605772,1715135433455,-166.16,0.00010777,2]
[326605773,1715135433465,-330.07,0.00010802,2]
[326605774,1715135433475,-330.07,0.00010831,2]
[326605775,1715135433485,-330.07,0.0001086,2]
[326605776,1715135433494,-330.07,0.00010889,2]
[326605777,1715135433504,-330.07,0.00010918,2]
[326605778,1715135433514,-330.07,0.00010947,2]
[326605779,1715135433523,-150.0,0.00010959,2]
[326605780,1715135433533,-1356.43,0.00010959,2]
[326605781,1715135433543,-4845.78,0.00010959,2]
[326605782,1715135433553,-330.07,0.00010976,2]
[326605783,1715135433563,-750.90499029,0.00011,2]
[326605784,1715135433572,-330.07,0.00011006,2]
[326605785,1715135433582,-330.07,0.00011035,2]
[326605786,1715135433592,-400.0,0.00011044,2]
[326605787,1715135433602,-330.07,0.00011064,2]
[326605788,1715135433611,-330.07,0.00011093,2]
[326605789,1715135433621,-210.0,0.0001111,2]
[326605790,1715135433632,-330.07,0.00011122,2]
[326605791,1715135433641,-330.07,0.00011151,2]
[326605792,1715135433651,-330.07,0.00011181,2]
[326605793,1715135433660,-600.0,0.00011372,2]
[326605794,1715135433670,-166.67,0.00011544,2]
[326605795,1715135433680,-210.3435,0.00011559,2]
[326605796,1715135433690,-22801.82444342,0.00011639,2]
[326605797,1715135433699,-155.26223192,0.00011656,2]
[326605798,1715135433711,-162.60593912,0.00011657,2]
[326605799,1715135433720,-178.07610173,0.00011658,2]
[326605800,1715135433730,-21163.8248,0.00011659,2]
[326605801,1715135433740,-221.527,0.00011659,2]
[326605802,1715135433750,-307.5999,0.00011659,2]
[326605803,1715135433760,-11479.7775,0.00011659,2]
[326605804,1715135433770,-1880.9825,0.00011659,2]
[326605805,1715135433779,-520.8575,0.00011659,2]
[326605806,1715135433789,-20878.2503,0.00011659,2]
[326605807,1715135433799,-2500.0,0.00011659,2]
[326605808,1715135433809,-7202.92334093,0.00011659,2]
[326605809,1715135433822,-297.07665907,0.00011659,2]
[326605810,1715135433832,-168.32996848,0.00011757,2]
[326605811,1715135433842,-3011.80978429,0.00011757,2]
[326605812,1715135433852,-2291.1466918,0.00011757,2]
[326605813,1715135433862,-1931.4134145,0.00011758,2]
[326605814,1715135433872,-2239.36151176,0.00011758,2]
[326605815,1715135433882,-44162.46440362,0.00011759,2]
[326605816,1715135439363,-101157.04983419,0.00011759,2]
[326605822,1715135439375,-99680.48576219,0.00011759,2]
[326605827,1715135439385,-45866.65270689,0.0001176,2]
[326605831,1715135439394,-171.79565419,0.0001176,2]
[326605836,1715135439404,-500.0,0.000118,4]
[326605838,1715135439414,-166.78278404,0.00011849,2]
[326605842,1715135439423,-605202.46946501,0.00011859,2]
[326605846,1715135439434,-317.1763,0.0001186,2]
[326605851,1715135439443,-7904.7822,0.0001186,2]
[326605853,1715135439453,-100000.0,0.0001186,2]
[326605855,1715135439463,-1000.0,0.0001186,2]
[326605857,1715135439472,-1100.0,0.000119,4]
[326605859,1715135439481,-171.4,0.00011927,2]
[326605860,1715135439490,-155.20782612,0.00011958,2]
[326605862,1715135439499,-155.39390736,0.00011958,2]
[326605864,1715135439508,-156.31958581,0.00011958,2]
[326605865,1715135439517,-1218.45061024,0.00011958,2]